Cogmind - Beta 16 @@@ ROGUE MODE // 2025.12.20 @ 20:22:08 Player: the Result: Destroyed by H-77 Assassin with Coil Gun Performance ------------- Evolutions (7) 3500 Regions Visited (25) 5000 Robots Destroyed (342) 1710 Value Destroyed (12542) 12542 Prototype IDs (99) 1980 Alien Tech Used (1) 200 Bonus (6565) 6565 TOTAL SCORE: 31497 Bonus ------- High Alert Combat Kills 1959 Follower Combat Kills 4277 Aligned with FarCom 300 Met Data Miner 300 Met Imprinter 300 Was Imprinted 300 Built Enhanced Grunts 300 Friendly Fire -1171 Cogmind --------- Core Integrity 0/1300 Matter 211/300 Energy 99/100 System Corruption 49% Temperature Cool (0) Movement Core (50) Location -3/Armory Parts ------- > --- POWER (3) -------- (None) > --- PROPULSION (6) --- (None) > --- UTILITY (9) ------ (None) > --- WEAPON (4) ------- (None) > --- INVENTORY (5) ---- Zionite Heavy DM Reactor Particle Reactor Advanced Force Field Advanced Remote Force Field Authchip [Device] Peak State ------------ > --- POWER ------------ Zionite Light DM Reactor Zionite Light DM Reactor Quantum Reactor > --- PROPULSION ------- Flexi-carbon Leg Flexi-carbon Leg Zionite Composite Leg I Myomer Leg Biometal Leg > --- UTILITY ---------- Advanced Power Amplifier Experimental Heat Sink Improved Coolant Injector High-capacity Storage Unit Zionite Biocell Advanced Sensor Array Advanced Signal Interpreter Experimental Targeting Computer Advanced Force Field > --- WEAPON ----------- Zionite Laser-M Zionite Laser-M Zionite Laser-M Zionite Laser-M > --- INVENTORY -------- Reinforced Antimatter Reactor Zionite Heavy DM Reactor Particle Reactor Flexi-carbon Leg Flexi-carbon Leg Flexi-carbon Leg Improved Coolant Injector Advanced Energy Well Experimental Targeting Computer Advanced Force Field Advanced Force Field Advanced Remote Force Field Authchip [Device] Zionite Laser-S Zionite Phaser-S Gamma Bomb Array Fusion Bomb Launcher Molecular Scythe [Rating: 151] Favorites ----------- Power Cold Fusion Reactor Engine Cooled Ion Engine Power Core Fission Core Reactor Cold Fusion Reactor Propulsion Flexi-carbon Leg Treads Armored Treads Leg Flexi-carbon Leg Wheel Armored Huge Wheel Hover Unit Gravmag System Utility Experimental Targeting Computer Device Advanced Sensor Array Storage High-capacity Storage Unit Processor Experimental Targeting Computer Hackware Authchip [Weapon] Protection Medium Reactive Plating Weapon Force Rifle Energy Gun Force Rifle Energy Cannon Plasma Cannon Ballistic Gun Heavy Assault Rifle Launcher Grenade Launcher Special Weapon Mining Laser Slashing Weapon Chainsword Piercing Weapon Heavy Pick Special Melee Weapon Datajack Build | -11 -10 -10 -10 -9 -8 -7 -7 -7 -7 -6 -6 -6 -6 -6 -6 -6 -5 -5 -5 -5 -5 -5 -4 -3 -3 ------- Run | Yrd Mat Min Exi Min Mat Fac Low Low Zio Pro Fac Was Fac Low Low Dat Pro Fac Ext Cet Arc Hub Fac Res Arm Slots Evolved 14 | . . . . . 4 2 . . . . 2 . . . . . . 2 . . . . 2 2 . Power 2 | . . . . . . . . . . . 1 . . . . . . . . . . . . 1 . Propulsion 3 | . . . . . 2 . . . . . . . . . . . . 1 . . . . . . . Utility 7 | . . . . . 1 2 . . . . 1 . . . . . . . . . . . 2 1 . Weapon 2 | . . . . . 1 . . . . . . . . . . . . 1 . . . . . . . Parts Attached 232 | 7 9 2 3 1 39 22 . . 3 2 13 10 12 . 3 . 1 23 5 13 4 5 10 25 20 Power 21 | 1 2 . . . 3 1 . . . . 2 1 1 . . . . 2 . . 1 . 2 4 1 Engine 5 | 1 2 . . . 2 . . . . . . . . . . . . . . . . . . . . Core 3 | . . . . . 1 . . . . . . . . . . . . 2 . . . . . . . Reactor 13 | . . . . . . 1 . . . . 2 1 1 . . . . . . . 1 . 2 4 1 Propulsion 58 | 2 . . . 1 17 . . . 2 1 2 4 . . . . . 4 4 3 1 2 1 8 6 Treads 19 | 2 . . . 1 15 . . . 1 . . . . . . . . . . . . . . . . Leg 34 | . . . . . . . . . . 1 1 4 . . . . . 4 4 3 . 2 1 8 6 Wheel 4 | . . . . . 2 . . . 1 . 1 . . . . . . . . . . . . . . Hover 1 | . . . . . . . . . . . . . . . . . . . . . 1 . . . . Flight . | . . . . . . . . . . . . . . . . . . . . . . . . . . Utility 87 | 2 2 1 1 . 7 10 . . 1 1 5 4 6 . 3 . 1 12 1 4 1 2 7 7 9 Device 39 | 1 1 1 . . 4 3 . . . 1 4 2 2 . 1 . . 7 1 . 1 1 3 1 5 Storage 9 | 1 1 . 1 . 1 1 . . . . 1 1 . . . . . . . . . . . . 2 Processor 8 | . . . . . . 4 . . . . . . . . . . 1 1 . . . . 1 . 1 Hackware 6 | . . . . . 1 . . . . . . . 1 . 1 . . 2 . . . . . . 1 Protection 25 | . . . . . 1 2 . . 1 . . 1 3 . 1 . . 2 . 4 . 1 3 6 . Artifact . | . . . . . . . . . . . . . . . . . . . . . . . . . . Weapon 66 | 2 5 1 2 . 12 11 . . . . 4 1 5 . . . . 5 . 6 1 1 . 6 4 Energy Gun 27 | 2 1 . . . 1 2 . . . . 1 . 4 . . . . 4 . 5 . 1 . 5 1 Energy Cannon 13 | . 4 . 1 . 2 3 . . . . 1 . 1 . . . . 1 . . . . . . . Ballistic Gun 10 | . . . . . 7 2 . . . . . . . . . . . . . 1 . . . . . Ballistic Cannon . | . . . . . . . . . . . . . . . . . . . . . . . . . . Launcher 8 | . . 1 . . 1 2 . . . . 1 . . . . . . . . . . . . . 3 Special Weapon 3 | . . . . . 1 . . . . . 1 . . . . . . . . . 1 . . . . Impact Weapon . | . . . . . . . . . . . . . . . . . . . . . . . . . . Slashing Weapon 3 | . . . . . . 2 . . . . . . . . . . . . . . . . . 1 . Piercing Weapon 1 | . . . . . . . . . . . . 1 . . . . . . . . . . . . . Special Melee Weapon 1 | . . . 1 . . . . . . . . . . . . . . . . . . . . . . Unidentified Prototypes 21 | . . . . . 2 3 . 1 . . 3 1 3 . . . . 1 1 3 . . . 3 . Corrupted Parts 8 | . . . . . . . . . . . . . . . . . . 2 . . 1 . . 1 4 System Corruption 57 | . . . . . . . . . . . . . . . . . . 10 . . 3 . . 4 40 Parts Lost 64 | . 1 . . . 6 . . . . . . . 1 . . . . 3 2 . . . 16 10 25 Power 7 | . 1 . . . 1 . . . . . . . . . . . . . . . . . 2 . 3 Propulsion 21 | . . . . . 1 . . . . . . . . . . . . 2 1 . . . 3 5 9 Utility 21 | . . . . . 3 . . . . . . . . . . . . 1 1 . . . 7 4 5 Weapon 15 | . . . . . 1 . . . . . . . 1 . . . . . . . . . 4 1 8 Highest Loss Streak 14 | . 1 . . . 1 . . . . . . . 1 . . . . 2 1 . . . 14 3 12 To Critical Strikes . | . . . . . . . . . . . . . . . . . . . . . . . . . . Average Backups 18 | 3 9 14 14 15 18 22 23 23 22 21 21 19 16 17 16 17 17 18 18 19 20 19 18 14 15 Power 1 | . . 1 1 1 2 1 1 1 1 1 . 1 1 1 1 1 1 1 1 1 2 1 1 2 3 Propulsion 2 | 1 1 3 3 3 5 6 5 5 4 3 2 2 1 1 1 1 1 . 1 1 1 1 . 1 2 Utility 9 | . 1 2 2 3 5 10 15 15 14 14 14 11 10 11 10 10 10 11 10 10 11 12 12 7 6 Weapon 4 | . 6 7 8 7 5 3 2 2 2 3 3 4 4 4 4 4 4 5 5 5 5 4 3 3 2 Tool/Special . | . . . . . . . . . . . . . . . . . . . . . . . . . . Unused Backups 40 | . 4 1 . . 3 13 . . . . 1 2 . . . . . 2 4 2 . 2 . 1 5 Power 8 | . . . . . 2 3 . . . . . . . . . . . . 2 1 . . . . . Propulsion 5 | . . . . . . 4 . . . . . . . . . . . . 1 . . . . . . Utility 16 | . 1 . . . . 4 . . . . 1 2 . . . . . . 1 . . 2 . . 5 Weapon 8 | . 2 1 . . 1 2 . . . . . . . . . . . . . 1 . . . 1 . Tool/Special 3 | . 1 . . . . . . . . . . . . . . . . 2 . . . . . . . Average Slot Usage (%) 90 | . 99 100 86 100 97 83 84 80 74 85 86 93 99 100 100 83 100 81 99 99 99 100 97 65 78 Engine 3 | . 13 14 14 14 8 6 . . . . . . . . . . . . . . . . . . . Core 1 | . . . . . . . . . . . . . . . . . . 4 11 11 8 5 2 . . Reactor 4 | . . . . . . . 7 7 7 7 12 12 12 12 12 12 12 6 . . 1 5 7 5 8 Treads 8 | . 28 28 28 28 34 . . . . 4 . . . . . . . . . . . . . . . Leg 14 | . . . . . . . . . . 3 6 19 30 31 31 31 31 27 32 33 33 33 29 21 23 Wheel 3 | . . . . . . 15 15 14 14 14 12 5 . . . . . . . . . . . . . Device 10 | . 14 14 14 14 12 7 7 7 7 7 11 12 11 12 12 12 12 9 10 6 5 5 9 8 12 Storage 7 | . 14 14 14 14 9 7 7 7 7 7 6 6 6 6 6 6 6 5 5 5 5 5 5 4 7 Processor 8 | . . . . . . 14 15 14 14 14 12 12 12 12 12 12 12 11 11 11 11 11 14 9 9 Protection 5 | . . . . . 4 6 7 7 7 7 6 6 6 6 6 6 6 4 5 8 10 11 9 6 3 Energy Gun 7 | . 4 . . . . 1 . . . . . . 10 18 18 2 18 8 22 21 21 22 19 8 10 Energy Cannon 7 | . 23 16 3 28 6 4 23 21 16 21 17 14 7 . . . . . . . . . . . . Ballistic Gun 3 | . . . . . 20 14 . . . . . . . . . . . . . . . . . . . Peak Build Rating 151 | 7 8 8 8 8 38 62 62 62 65 67 85 95 98 97 97 97 98 112 108 116 119 122 140 135 151 Average Rating 70 | 2 7 8 7 8 28 49 61 60 58 65 81 87 94 96 96 80 96 102 105 111 115 119 133 100 119 On Entrance 70 | . 7 8 8 8 8 38 62 62 61 65 67 83 92 96 96 97 97 97 108 107 115 118 121 85 128 Avg Prop Armor Cover (%) 3 | . . . . . . . . . 6 5 3 3 . . . . . . . . . . . . . Naked Turns 47 | . . . . . . . . . . . . . . . . . . . . . . . . . 47 Heaviest Build 158 | 12 32 32 52 32 106 134 134 134 134 134 158 156 119 107 107 107 107 112 98 95 102 102 120 97 110 Greatest Support 156 | 40 40 40 40 40 80 56 56 56 56 56 56 122 122 122 122 122 122 152 144 148 148 156 156 151 137 Greatest Overweight (x) 5 | . . . 1 . 2 2 2 2 2 2 2 5 1 . . . . . . . . . . 2 1 Average Overweight (x) . | . . . . . . 1 2 2 2 2 2 1 . . . . . . . . . . . . . Largest Inventory Capacity 25 | 8 15 15 20 15 25 25 25 25 25 25 25 25 20 20 20 20 20 20 20 20 20 20 20 20 20 Average Capacity 20 | 5 13 15 17 15 20 25 25 25 25 25 25 22 20 20 20 20 20 20 20 20 20 20 20 20 18 Most Carried 25 | 5 15 15 15 15 23 25 25 25 25 25 25 25 20 20 20 20 20 20 20 20 20 20 20 20 20 Average Carried 19 | 3 9 14 14 14 18 24 25 25 24 25 24 22 19 20 19 20 20 18 18 19 20 19 18 14 15 Final Capacity 25 | 8 15 15 15 15 25 25 25 25 25 25 25 20 20 20 20 20 20 20 20 20 20 20 20 20 5 Final Carried 25 | 3 15 15 15 15 23 25 25 25 25 25 25 20 20 20 20 20 20 18 19 20 20 20 11 18 5 Class Distribution -------------------- 27% | Tank 20% | Skirmisher 16% | Mutant 9% | Messiah-Skirmisher 6% | Scavenger-Gunner 3% | Scavenger-Tank 3% | Commander-Tank 3% | Gunner 3% | Messiah-Gunner 3% | Messiah-Mutant Dominant Class ---------------- Mutant | -10/Materials Mutant | -10/Mines Mutant | -10/Exiles Mutant | -9/Mines Scavenger-Gunner | -8/Materials Skirmisher | -7/Factory Skirmisher | -7/Lower Caves Skirmisher | -7/Lower Caves Skirmisher | -7/Zion Skirmisher | -6/Proximity Caves Skirmisher | -6/Factory Tank | -6/Waste Tank | -6/Factory Tank | -6/Lower Caves Tank | -6/Lower Caves Mutant | -6/Data Miner Tank | -5/Proximity Caves Tank | -5/Factory Commander-Tank | -5/Extension Messiah-Skirmisher | -5/Cetus Messiah-Skirmisher | -5/Archives Messiah-Skirmisher | -5/Hub_04(d) Messiah-Gunner | -4/Factory Messiah-Mutant | -3/Research Messiah-Skirmisher | -3/Armory Resources | -11 -10 -10 -10 -9 -8 -7 -7 -7 -7 -6 -6 -6 -6 -6 -6 -6 -5 -5 -5 -5 -5 -5 -4 -3 -3 ----------- Run | Yrd Mat Min Exi Min Mat Fac Low Low Zio Pro Fac Was Fac Low Low Dat Pro Fac Ext Cet Arc Hub Fac Res Arm Matter Collected 7218 | 225 112 113 . 97 1280 718 69 7 115 90 340 421 454 27 151 . 68 864 274 180 144 87 446 573 363 Remotely . | . . . . . . . . . . . . . . . . . . . . . . . . . . Salvage Created 16233 | 161 549 143 . 279 3207 754 49 . . 107 955 1352 1175 125 558 . 240 1887 779 40 310 153 1331 702 1377 Parts 776 | 12 40 10 . 16 169 47 1 . . 3 41 9 54 1 34 . 2 103 49 2 23 3 68 33 56 Haulers Intercepted 9 | . 2 . . . 6 . . . . . . . 1 . . . . . . . . . . . . Recyclers Shooed 11 | . . . . . . 4 . . . . 3 . 3 . . . . . . . . . . 1 . Parts Field Recycled . | . . . . . . . . . . . . . . . . . . . . . . . . . . Retrieved Matter . | . . . . . . . . . . . . . . . . . . . . . . . . . . Parts Self-Destructed 49 | . . . . . . . 1 . . 14 . . . 1 32 . 1 . . . . . . . . Prevented 1 | . . . . . . . . . . 1 . . . . . . . . . . . . . . . Parts Restored . | . . . . . . . . . . . . . . . . . . . . . . . . . . Kills | -11 -10 -10 -10 -9 -8 -7 -7 -7 -7 -6 -6 -6 -6 -6 -6 -6 -5 -5 -5 -5 -5 -5 -4 -3 -3 ------- Run | Yrd Mat Min Exi Min Mat Fac Low Low Zio Pro Fac Was Fac Low Low Dat Pro Fac Ext Cet Arc Hub Fac Res Arm Combat Hostiles Destroyed 226 | . 10 6 . 3 50 7 1 . . 2 14 6 15 . 6 . . 28 9 . . 2 31 13 23 Melee 2 | . . . . . . . . . . . . . . . . . . . . . . . . . 2 Guns 127 | . 2 . . . 24 5 . . . . . . 13 . 6 . . 27 9 . . 2 20 10 9 Cannons 54 | . 8 3 . 2 20 2 1 . . 2 13 1 2 . . . . . . . . . . . . AOE 34 | . . 3 . . 4 . . . . . . 5 . . . . . . . . . . 11 3 8 Classes Destroyed 23 | 2 7 . . 1 4 2 . . . . 2 2 . . 1 . . . . . . . . . 2 Worker 21 | . 2 . . . 6 4 . . . . . . 2 . . . . 3 . . . . 1 3 . Builder 16 | . . . . . 4 1 . . . . . . 2 . . . . 7 . . . . 2 . . Tunneler 22 | 5 4 1 . 2 4 1 . . . . 1 . 1 . . . . 1 . . . . 1 1 . Hauler 9 | . 2 . . . 6 . . . . . . . 1 . . . . . . . . . . . . Recycler 11 | 1 . . . 1 1 4 . . . . 1 . . . . . . 2 . . . . 1 . . Mechanic 1 | . 1 . . . . . . . . . . . . . . . . . . . . . . . . Operator 16 | . 2 . . . 1 1 . . . . 1 . . . . . . 1 2 . 8 . . . . Watcher 17 | . 3 . . . 5 . . . . . 1 . 2 . . . . 2 . 1 . . 1 1 1 Swarmer 58 | . 8 3 . . 8 . . . . . 4 . 5 . . . . 11 . . . . 14 5 . Saboteur 1 | . . . . . . . . . . . . . . . . . . . . . . . . . 1 Grunt 82 | . 2 3 . 2 28 2 . . . 2 4 . 7 . 3 . . 7 2 . . 1 7 2 10 Brawler 6 | . . . . 1 2 . . . . . . . 1 . 1 . . . . . . . 1 . . Duelist 2 | . . . . . . . . . . . . . . . . . . . . . . . . . 2 Protector 1 | . . . . . 1 . . . . . . . . . . . . . . . . . . . . Sentry 26 | . . . . . 9 1 . . . . 3 . . . . . . 3 4 . . 1 3 1 1 Demolisher 4 | . . . . . . . . . . . . . . . . . . . . . . . . . 4 Specialist 4 | . . . . . 2 . . . . . . . . . . . . . . . . . . . 2 Hunter 12 | . . . . . . 1 . . . . 1 . 1 . . . . 1 2 . . . 1 2 3 Programmer 20 | . . . . . . 3 1 . . . 1 . 1 . 1 . . 5 . . . . 5 3 . Behemoth 4 | . . . . . . . . . . . 1 . . . 1 . . 1 1 . . . . . . Compactor 6 | . . . . . . . . . . . . 6 . . . . . . . . . . . . . Samaritan 1 | . . . . . . . . . . . . . . . 1 . . . . . . . . . . Surgeon 1 | . . . . . . . . . . . . . 1 . . . . . . . . . . . . Martyr 1 | . . . . . . . . . . . . 1 . . . . . . . . . . . . . Mutant 1 | . . . . . . . . . . . 1 . . . . . . . . . . . . . . Best Kill Streak 9 | 6 3 4 . 4 8 4 1 . . 1 7 4 5 . 3 . . 7 2 1 3 1 9 7 8 Combat Bots Only 8 | . 3 3 . 3 8 3 1 . . 1 6 4 5 . 3 . . 7 2 . . 1 7 6 8 Max Kills in Single Turn 4 | 1 1 2 . 1 4 1 1 . . 1 2 1 2 . 1 . . 3 1 1 1 1 4 3 3 Gunslinging 1 | . . . . . 1 . . . . . . . . . . . . . . . . . 1 1 1 Exploded 4 | . . 2 . . 4 . . . . . . 1 . . . . . . . . . . 4 1 3 Melee 1 | . . . . . . . . . . . . . . . . . . . . . . . . . 1 Uniques/NPCs Destroyed . | . . . . . . . . . . . . . . . . . . . . . . . . . . Combat | -11 -10 -10 -10 -9 -8 -7 -7 -7 -7 -6 -6 -6 -6 -6 -6 -6 -5 -5 -5 -5 -5 -5 -4 -3 -3 -------- Run | Yrd Mat Min Exi Min Mat Fac Low Low Zio Pro Fac Was Fac Low Low Dat Pro Fac Ext Cet Arc Hub Fac Res Arm Hostile Shots Fired 1317 | . 31 10 . 16 189 67 2 . . 5 66 . 46 . 38 . . 121 44 6 . 4 197 139 336 Missed 447 | . 10 3 . 2 57 21 1 . . . 26 . 14 . 9 . . 35 14 5 . 1 57 60 132 Hits 870 | . 21 7 . 14 132 46 1 . . 5 40 . 32 . 29 . . 86 30 1 . 3 140 79 204 Melee 4 | . . . . . 1 . . . . . . . . . . . . . . . . . 1 . 2 Projectile 866 | . 21 7 . 14 131 46 1 . . 5 40 . 32 . 29 . . 86 30 1 . 3 139 79 202 AOE 13 | . . . . . . . . . . . . . . . . . . . . . . . . . 13 Critical Strikes 23 | . . . . . 3 2 . . . . . . 1 . . . . 2 1 3 . . 4 3 4 Actively Blocked 1 | . . . . . . . . . . . . . . . . . . . . . . . 1 . . Part Disruptions 1 | . . . . . . . . . . . . . . . . . . . . . . . . . 1 Damage Taken 13829 | . 161 88 . 157 2001 655 14 . . 113 471 49 258 . 362 . . 948 450 157 . 81 2531 1780 3553 Core 2138 | . 24 47 . 22 245 130 . . . 9 49 6 16 . 32 . . 51 9 . . 14 176 116 1192 Absorbed by Shields 2026 | . . . . . . . . . . . . 55 254 . 245 . . 377 388 . . . . . 707 Redirected to Shielding 854 | . . . . . . . . . . . . . . . . . . . . . . 15 496 246 97 Ignored by Resistances 490 | . . . . . . 25 . . . . 125 . 48 . 50 . . 242 . . . . . . . Regen/Repaired (Parts) 517 | . . . . . 278 . . . . . . 142 25 . . . . . 72 . . . . . . Core Remaining (%) 80 | 100 . . . 62 55 . . . . 80 . . . . . . 87 . . . . 92 84 . . Volleys Fired 854 | 18 52 9 2 12 142 35 1 . . 4 45 31 68 2 21 . 4 97 45 3 52 18 67 75 51 Largest 4 | 2 2 2 1 2 3 3 3 . . 3 3 2 3 3 3 . 3 4 4 2 4 4 4 4 4 Hottest 320 | 90 120 120 60 120 180 240 240 . . 240 250 160 260 240 240 . 240 300 320 160 240 240 240 292 292 Shots Fired 1789 | 36 105 17 2 24 418 105 4 . . 12 110 36 144 6 63 . 12 108 125 6 62 33 167 111 83 Gun 1239 | 36 22 . . . 246 90 . . . . . . 103 6 63 . 12 108 125 6 60 33 158 108 63 Cannon 496 | . 83 15 2 24 168 14 4 . . 12 108 25 41 . . . . . . . . . . . . Launcher 47 | . . 2 . . 1 1 . . . . . 11 . . . . . . . . . . 9 3 20 Special 7 | . . . . . 3 . . . . . 2 . . . . . . . . . 2 . . . . Kinetic 333 | . . . . . 246 87 . . . . . . . . . . . . . . . . . . . Thermal 1089 | 36 105 15 2 24 171 17 4 . . 12 108 25 142 6 63 . 12 58 112 6 41 . . 70 60 Explosive 33 | . . 2 . . 1 1 . . . . . 11 . . . . . . . . . . 9 3 6 Electromagnetic 14 | . . . . . . . . . . . . . . . . . . . . . . . . . 14 Phasic 316 | . . . . . . . . . . . . . 2 . . . . 50 13 . 19 33 158 38 3 Robot Hit Streak 30 | 14 7 8 . 5 30 17 1 . . 12 15 28 14 2 16 . 8 14 17 4 10 9 27 9 13 Robot Miss Streak 14 | 2 4 1 . 1 4 4 1 . . . 2 2 3 1 2 . 1 14 3 1 3 1 3 5 2 Penetration Max . | . . . . . . . . . . . . . . . . . . . . . . . . . . Secondary Targets 23 | . . . . . 6 . . . . . . . . . 1 . . . 1 . . . 9 2 4 Max Gunslinging Chain 2 | . . . . . 1 . . . . . . . . . 1 . . . 1 . . . 1 1 2 Shots Hit Robots 1101 | 22 57 11 4 15 268 71 1 . . 11 67 33 86 2 43 . 8 58 81 5 45 16 93 49 55 Core Hits 660 | 7 25 9 . 7 132 24 1 . . 6 30 25 39 2 15 . 3 91 24 2 19 3 100 47 49 Critical Kills 19 | . 1 . . 1 3 . . . . . 1 . 4 . 2 . . . 3 1 2 . . 1 . Critical Parts Destroyed 19 | . . . . . 2 . . . . . . . 4 . 3 . . . 5 1 3 . . 1 . Critical Strikes 58 | . 2 . . 1 5 . . . . . 1 . 8 . 6 . . 1 10 2 8 . 11 3 . Burn 1 | . 1 . . . . . . . . . . . . . . . . . . . . . . . . Meltdown 7 | . 1 . . 1 3 . . . . . 1 . 1 . . . . . . . . . . . . Destroy 35 | . . . . . 2 . . . . . . . 7 . 6 . . . 10 2 6 . . 2 . Intensify 15 | . . . . . . . . . . . . . . . . . . 1 . . 2 . 11 1 . Melee Attacks 45 | . . . 4 . . 27 . 1 1 . . 3 . . . . . . . . . . . . 9 Impact . | . . . . . . . . . . . . . . . . . . . . . . . . . . Slashing 38 | . . . . . . 27 . 1 1 . . . . . . . . . . . . . . . 9 Piercing 3 | . . . . . . . . . . . . 3 . . . . . . . . . . . . . Sneak Attacks 12 | . . . 4 . . 5 . . . . . 3 . . . . . . . . . . . . . Combat Hostiles . | . . . . . . . . . . . . . . . . . . . . . . . . . . Follow-up Attacks . | . . . . . . . . . . . . . . . . . . . . . . . . . . Damage Inflicted 38836 | 264 998 418 . 274 4607 1555 31 . . 282 2026 4916 2399 50 1134 . 193 4248 2202 139 1306 570 5240 2463 3521 Guns 21382 | 260 162 . . . 2645 906 . . . . . . 1917 50 1134 . 193 3972 2202 139 1306 570 2976 1525 1425 Cannons 6804 | . 815 192 . 267 1849 178 31 . . 282 2026 682 482 . . . . . . . . . . . . Explosions 9661 | . . 226 . . 90 21 . . . . . 4024 . . . . . 260 . . . . 2218 938 1884 Melee 869 | . . . . . . 450 . . . . . 210 . . . . . . . . . . . . 209 Ramming 120 | 4 21 . . 7 23 . . . . . . . . . . . . 16 . . . . 46 . 3 Kinetic 3474 | . . . . . 2645 829 . . . . . . . . . . . . . . . . . . . Thermal 20232 | 260 977 192 . 267 1849 255 31 . . 282 2026 682 2399 50 1134 . 193 3801 2202 139 745 . . 1288 1460 Explosive 8734 | . . 226 . . 90 21 . . . . . 4024 . . . . . 185 . . . . 2218 938 1032 Electromagnetic 793 | . . . . . . . . . . . . . . . . . . 75 . . . . . . 718 Impact . | . . . . . . . . . . . . . . . . . . . . . . . . . . Slashing 659 | . . . . . . 450 . . . . . . . . . . . . . . . . . . 209 Piercing 210 | . . . . . . . . . . . . 210 . . . . . . . . . . . . . Phasic 4614 | . . . . . . . . . . . . . . . . . . 171 . . 561 570 2976 237 99 Highest Corruption 49 | . 2 2 2 2 . 4 4 4 4 . . . 1 1 3 3 3 12 . . 3 2 10 8 49 Average Corruption 3 | . 2 2 2 2 . 2 4 4 4 . . . 1 1 1 3 3 4 . . 2 2 6 6 11 Corruption Purged 18 | . . . . . . . . . . . . . . . . . . 15 . . 3 . . . . Corruption Blocked . | . . . . . . . . . . . . . . . . . . . . . . . . . . Effects 184 | . 4 7 11 1 . 20 6 9 5 . . . 5 8 11 2 1 42 . . 2 7 8 5 30 Message Errors 45 | . 1 1 1 1 . 4 3 2 2 . . . . 2 3 . . 13 . . . 3 2 . 7 Matter Fused 51 | . 1 4 2 . . 6 . 2 1 . . . 1 3 5 1 1 13 . . . 1 2 3 5 Heat Flow Errors 21 | . 1 . 2 . . 5 1 3 . . . . . . 1 . . 3 . . . 1 . . 4 Energy Discharges 15 | . . . 3 . . . . 1 . . . . 1 2 1 . . 1 . . 1 2 1 . 2 Parts Rejected 1 | . . . . . . . . . . . . . . . . . . . . . . . . . 1 Data Loss (minor) 13 | . . . 1 . . 2 1 1 2 . . . . . . . . 4 . . . . . . 2 Data Loss (major) 16 | . . 1 2 . . 1 . . . . . . . 1 1 1 . 5 . . 1 . 1 . 2 Misfires 5 | . 1 1 . . . 2 1 . . . . . . . . . . . . . . . . . . Alerts 6 | . . . . . . . . . . . . . 1 . . . . 2 . . . . 1 1 1 Misdirections 4 | . . . . . . . . . . . . . . . . . . . . . . . 1 . 3 Weapon Failures 7 | . . . . . . . . . . . . . 2 . . . . 1 . . . . . 1 3 Overload Shots . | . . . . . . . . . . . . . . . . . . . . . . . . . . Overflow Damage 413 | . 28 5 . . . 167 . . . . 49 44 2 . . . . 11 . . . . 24 5 78 Projectiles 79 | . 28 . . . . . . . . . 49 . 2 . . . . . . . . . . . . Explosions 99 | . . 5 . . . . . . . . . . . . . . . 11 . . . . . 5 78 Melee 235 | . . . . . . 167 . . . . . 44 . . . . . . . . . . 24 . . Knockbacks 1 | . 1 . . . . . . . . . . . . . . . . . . . . . . . . Impact 1 | . 1 . . . . . . . . . . . . . . . . . . . . . . . . Kinetic . | . . . . . . . . . . . . . . . . . . . . . . . . . . Secondary . | . . . . . . . . . . . . . . . . . . . . . . . . . . Self-Inflicted Damage 472 | . . . . . . . . . . . . 106 . . . . . 46 . . . . 74 132 114 Shots 25 | . . . . . . . . . . . . 6 . . . . . 2 . . . . 3 8 6 Rammed 15 | 1 4 2 . 1 5 . . . . . . . . . . . . . . . . . . . 2 Targets Rammed 18 | 1 4 2 . 1 6 . . . . . . . . . . . . 1 . . . . 1 . 2 Kicked 2 | . . . . . . . . . . . . . . . . . . 1 . . . . 1 . . Crushed 1 | . . . . . 1 . . . . . . . . . . . . . . . . . . . . Highest Temperature 544 | 130 355 258 221 324 439 216 226 195 . 333 306 315 286 288 211 . 544 335 506 153 318 260 389 311 199 Average Temperature 107 | 58 96 121 83 139 112 62 92 86 . 133 112 123 99 151 116 . 237 96 137 69 125 112 102 93 83 Received Heat Transfer 2689 | . . 48 . 84 972 216 . . . 48 72 . 78 . 94 . . 84 86 9 . 9 253 99 537 Effects 23 | . 8 . . 2 3 1 . . . . 1 1 . . . . 1 . 2 . . 1 1 2 . Shutdowns 1 | . . . . 1 . . . . . . . . . . . . . . . . . . . . . Energy Bleed 5 | . . . . 1 1 1 . . . . 1 . . . . . 1 . . . . . . . . Interference 16 | . 7 . . . 2 . . . . . . 1 . . . . . . 2 . . 1 1 2 . Damage (minor) 1 | . 1 . . . . . . . . . . . . . . . . . . . . . . . . Siege Activations . | . . . . . . . . . . . . . . . . . . . . . . . . . . Martial Activations . | . . . . . . . . . . . . . . . . . . . . . . . . . . Shielding Activations . | . . . . . . . . . . . . . . . . . . . . . . . . . . Robots Disrupted 1 | . . . . . . . . . . . . . . . . . . . . . . . . . 1 Combat Hostiles 1 | . . . . . . . . . . . . . . . . . . . . . . . . . 1 Robots Corrupted 5 | . . . . . . . . . . . . . . . . . . . . . . . 1 . 4 Combat Hostiles 4 | . . . . . . . . . . . . . . . . . . . . . . . . . 4 Parts Fried 10 | . . . . . . . . . . . . . . . . . . . 1 . . 1 3 . 5 Impact Corruptions 2 | . . . . . . . . . . . . . . . . . . . . . . . 2 . . Robots Melted 8 | . 1 . . 1 3 . . . . . 1 . 1 . . . . 1 . . . . . . . Combat Hostiles 5 | . . . . 1 2 . . . . . 1 . . . . . . 1 . . . . . . . Parts Melted 71 | . 5 . . . 13 2 . . . . 10 . 10 . 2 . . 14 7 . 2 . . 1 5 Heat Transferred 31940 | 694 2257 407 . 555 3885 500 50 . . 550 3550 1150 3562 74 1591 . 296 5221 3145 185 1184 . . 1554 1530 Parts Sabotaged 2 | . . . . . . . . . . . . . . . . . . . . . . . . . 2 Parts Stolen . | . . . . . . . . . . . . . . . . . . . . . . . . . . Parts Stripped . | . . . . . . . . . . . . . . . . . . . . . . . . . . Power Chain Reactions 2 | . . . . . . . . . . . . . . . . . . . . . . . . . 2 Alert | -11 -10 -10 -10 -9 -8 -7 -7 -7 -7 -6 -6 -6 -6 -6 -6 -6 -5 -5 -5 -5 -5 -5 -4 -3 -3 ------- Run | Yrd Mat Min Exi Min Mat Fac Low Low Zio Pro Fac Was Fac Low Low Dat Pro Fac Ext Cet Arc Hub Fac Res Arm Maximum Alert Level 4 | . . . . . 2 . . . . . 2 . 3 . . . . 2 3 2 1 4 4 3 3 Low Security (%) 38 | 100 100 100 . 100 9 100 . . . . 45 100 23 . . . . 12 6 19 81 2 . . . Level 1 32 | . . . . . 82 . . . . . 49 . 21 . . . . 35 59 68 18 41 . . . Level 2 20 | . . . . . 8 . . . . . 4 . 47 . . . . 51 22 11 . 14 28 42 85 Level 3 8 | . . . . . . . . . . . . . 8 . . . . . 11 . . 21 69 57 14 Level 4 . | . . . . . . . . . . . . . . . . . . . . . . 19 1 . . Level 5 . | . . . . . . . . . . . . . . . . . . . . . . . . . . High Security . | . . . . . . . . . . . . . . . . . . . . . . . . . . Max Security . | . . . . . . . . . . . . . . . . . . . . . . . . . . Sterilizations 1 | . . . . . 1 . . . . . . . . . . . . . . . . . . . . Peak Influence 1167 | 15 83 119 . 65 432 159 . . . . 433 131 952 . . . . 534 855 466 205 1167 1139 1000 774 Initial 579 | . . 15 . . . 159 . . . . . 131 . . . . . . 257 466 62 39 563 579 508 Average 301 | 3 24 18 . 20 313 64 . . . . 229 17 405 . . . . 364 393 271 168 608 764 728 532 Influence Increases 12926 | 30 419 159 . 85 1438 520 30 . . 224 939 41 1730 5 155 . 5 1149 1268 156 263 1498 1080 967 765 Destroy 0b10 Robot/C 6580 | . 200 120 . 60 980 200 20 . . 140 500 . 760 . 120 . . 560 600 80 80 600 620 480 460 Destroy 0b10 Robot/NC 700 | 30 70 5 . 15 145 80 . . . . 45 . 45 5 5 . 5 80 25 5 40 35 30 30 5 Destroy Leader 1338 | . 60 20 . 10 252 84 10 . . 20 136 . 146 . 30 . . 124 84 . . 116 112 72 62 Allied During Kill 2077 | . . . . . . 8 . . . 64 135 . 526 . . . . . 494 61 120 588 . 81 . Successful Hack 112 | . 27 . . . 17 46 . . . . . . 16 . . . . 4 . . . . 2 . . Disable Machine 465 | . 60 . . . 15 15 . . . . 60 . 45 . . . . 75 . . 15 30 60 15 75 Anti-Garrison Action 300 | . . . . . . . . . . . . . 150 . . . . 150 . . . . . . . Destroy Structure 994 | . 2 14 . . 14 27 . . . . 63 41 27 . . . . 96 50 10 8 114 256 124 148 Lose Combat Pursuer 360 | . . . . . 15 60 . . . . . . 15 . . . . 60 15 . . 15 . 165 15 Influence Decreases 12173 | 30 379 96 103 85 1086 782 120 . . 224 562 418 781 694 409 6 5 622 961 834 304 462 1128 1100 982 Entered New Map 3391 | . . 25 103 . . 193 34 . . . . 246 . 352 50 6 . . 270 368 94 76 588 524 462 Time Decay 6691 | 30 369 71 . 85 716 529 86 . . 224 482 112 470 342 359 . 5 592 571 206 190 246 380 356 270 Lost Part 640 | . 10 . . . 60 . . . . . . . 10 . . . . 30 20 . . . 160 100 250 Lost Ally 1151 | . . . . . 10 60 . . . . 80 60 301 . . . . . 100 260 20 140 . 120 . Purge Threat 300 | . . . . . 300 . . . . . . . . . . . . . . . . . . . . Squads Dispatched 75 | . 2 . . . 8 11 . . . . 5 . 15 . . . . 15 3 . . 5 6 3 2 Investigation 19 | . . . . . 2 4 . . . . . . 5 . . . . 5 1 . . 1 . 1 . Extermination 20 | . . . . . . 4 . . . . 3 . 3 . . . . 5 . . . 1 2 1 1 Reinforcement 19 | . 2 . . . 2 3 . . . . 2 . 2 . . . . 2 2 . . 2 1 . 1 Assault 10 | . . . . . 1 . . . . . . . 2 . . . . 2 . . . 1 3 1 . Garrison 7 | . . . . . 3 . . . . . . . 3 . . . . 1 . . . . . . . Intercept . | . . . . . . . . . . . . . . . . . . . . . . . . . . Searches Triggered . | . . . . . . . . . . . . . . . . . . . . . . . . . . Data Miner Redirects 4 | . . . . . . . . . . . . . . . . . . 3 . . . . 1 . . Construction Impeded 6 | . . . . . . . . . . . 1 . 1 . . . . 1 1 . . 1 1 . . Haulers Reinforced 3 | . . . . . . . . . . . 1 . 1 . . . . . . . . 1 . . . Active Scanning Responses . | . . . . . . . . . . . . . . . . . . . . . . . . . . Cargo Convoy Interrupts 1 | . . . . . . 1 . . . . . . . . . . . . . . . . . . . Stealth | -11 -10 -10 -10 -9 -8 -7 -7 -7 -7 -6 -6 -6 -6 -6 -6 -6 -5 -5 -5 -5 -5 -5 -4 -3 -3 --------- Run | Yrd Mat Min Exi Min Mat Fac Low Low Zio Pro Fac Was Fac Low Low Dat Pro Fac Ext Cet Arc Hub Fac Res Arm Distress Signals 16 | . 1 . . . . 3 . . . . 2 . 1 . . . . . 2 1 . 3 1 1 1 Communications Jammed . | . . . . . . . . . . . . . . . . . . . . . . . . . . Distress Signals . | . . . . . . . . . . . . . . . . . . . . . . . . . . Times Spotted 449 | . 25 6 . 6 60 23 1 . . 7 28 6 39 . 6 . . 35 33 5 23 25 35 41 45 Peak Tracking Total 19 | . 3 3 9 3 5 5 . . . 4 5 3 8 . 4 . . 5 3 5 1 7 6 10 19 Tactical Retreats 15 | . . . . . 1 1 . . . . . . 1 . . . . 3 1 . . 1 . 6 1 Traps | -11 -10 -10 -10 -9 -8 -7 -7 -7 -7 -6 -6 -6 -6 -6 -6 -6 -5 -5 -5 -5 -5 -5 -4 -3 -3 ------- Run | Yrd Mat Min Exi Min Mat Fac Low Low Zio Pro Fac Was Fac Low Low Dat Pro Fac Ext Cet Arc Hub Fac Res Arm Traps Triggered 22 | . 1 . . . 2 2 . . . . 2 . 3 . . . . 4 1 . . 1 3 1 2 Indirectly 2 | . . . . . . . . . . . . . . . . . . . . . . . . . 2 Trap Hack Attempts . | . . . . . . . . . . . . . . . . . . . . . . . . . . Triggered . | . . . . . . . . . . . . . . . . . . . . . . . . . . Disarmed . | . . . . . . . . . . . . . . . . . . . . . . . . . . Reprogrammed . | . . . . . . . . . . . . . . . . . . . . . . . . . . Reused . | . . . . . . . . . . . . . . . . . . . . . . . . . . Traps Extracted . | . . . . . . . . . . . . . . . . . . . . . . . . . . Installed 3 | . . 3 . . . . . . . . . . . . . . . . . . . . . . . Triggered . | . . . . . . . . . . . . . . . . . . . . . . . . . . Machines | -11 -10 -10 -10 -9 -8 -7 -7 -7 -7 -6 -6 -6 -6 -6 -6 -6 -5 -5 -5 -5 -5 -5 -4 -3 -3 ---------- Run | Yrd Mat Min Exi Min Mat Fac Low Low Zio Pro Fac Was Fac Low Low Dat Pro Fac Ext Cet Arc Hub Fac Res Arm Machines Disabled 36 | . 4 . 1 . 1 1 . . . . 4 . 4 . . . . 6 1 1 1 2 4 1 5 Max in Single Turn 2 | . 1 . 1 . 1 1 . . . . 1 . 1 . . . . 2 . . . 1 2 1 1 Garrison Access 2 | . . . . . . . . . . . . . 1 . . . . 1 . . . . . . . Machines Repaired . | . . . . . . . . . . . . . . . . . . . . . . . . . . Machines Dismantled . | . . . . . . . . . . . . . . . . . . . . . . . . . . Machines Sabotaged . | . . . . . . . . . . . . . . . . . . . . . . . . . . Overloaded Fab Kills . | . . . . . . . . . . . . . . . . . . . . . . . . . . Hacking | -11 -10 -10 -10 -9 -8 -7 -7 -7 -7 -6 -6 -6 -6 -6 -6 -6 -5 -5 -5 -5 -5 -5 -4 -3 -3 --------- Run | Yrd Mat Min Exi Min Mat Fac Low Low Zio Pro Fac Was Fac Low Low Dat Pro Fac Ext Cet Arc Hub Fac Res Arm Machines Accessed 61 | . 7 . 2 . 16 12 1 . . . 2 . 4 . 1 3 . 8 1 1 . . 2 . 1 Terminals 25 | . 5 . . . 11 7 . . . . . . . . . . . 1 . 1 . . . . . Fabricators 12 | . . . . . . 3 . . . . . . 3 . . . . 4 . . . . 1 . 1 Repair Stations 5 | . . . . . 2 . . . . . 1 . . . . . . . 1 . . . 1 . . Recycling Units 3 | . 2 . . . 1 . . . . . . . . . . . . . . . . . . . . Scanalyzers 6 | . . . . . 1 2 . . . . 1 . . . . . . 2 . . . . . . . Garrison Access 3 | . . . . . 1 . . . . . . . 1 . . . . 1 . . . . . . . Total Hacks 172 | . 16 . 2 . 38 39 1 . . . 4 . 14 . 1 26 . 19 2 2 . . 6 . 2 Successful 102 | . 8 . 2 . 15 25 1 . . . 1 . 4 . 1 26 . 12 2 . . . 3 . 2 Failed 69 | . 8 . . . 23 13 . . . . 3 . 10 . . . . 7 . 2 . . 3 . . Catastrophic 18 | . . . . . 6 5 . . . . 2 . 2 . . . . 2 . 1 . . . . . Database Lockouts 1 | . . . . . . 1 . . . . . . . . . . . . . . . . . . . Manual 216 | . 12 . 1 . 24 15 . . . . 59 . 33 . . . . 16 28 1 . 18 4 5 . Terminals 59 | . 14 . . . 29 12 . . . . . . . . . . . 2 . 2 . . . . . Fabricators 42 | . . . . . . 12 . . . . . . 11 . . . . 13 . . . . 4 . 2 Repair Stations 11 | . . . . . 4 . . . . . 3 . . . . . . . 2 . . . 2 . . Recycling Units 3 | . 2 . . . 1 . . . . . . . . . . . . . . . . . . . . Scanalyzers 21 | . . . . . 2 15 . . . . 1 . . . . . . 3 . . . . . . . Garrison Access 6 | . . . . . 2 . . . . . . . 3 . . . . 1 . . . . . . . Terminal Hacks 41 | . 2 . 2 . 6 2 1 . . . . . . . 1 26 . 1 . . . . . . . Record 7 | . . . 1 . . . . . . . . . . . . 6 . . . . . . . . . Part Schematic 12 | . . . . . . . . . . . . . . . . 12 . . . . . . . . . Robot Schematic 5 | . . . . . . . . . . . . . . . . 5 . . . . . . . . . Robot Analysis 1 | . 1 . . . . . . . . . . . . . . . . . . . . . . . . Prototype ID Bank 6 | . 1 . . . 2 . . . . . . . . . . 3 . . . . . . . . . Open Door 3 | . . . . . . . 1 . . . . . . . 1 . . 1 . . . . . . . Branch Access Points 1 | . . . . . . 1 . . . . . . . . . . . . . . . . . . . Terminal Index 2 | . . . . . 1 1 . . . . . . . . . . . . . . . . . . . Unreport Threat 2 | . . . . . 2 . . . . . . . . . . . . . . . . . . . . Locate Traps 1 | . . . . . 1 . . . . . . . . . . . . . . . . . . . . Proto ID Catalog 1 | . . . 1 . . . . . . . . . . . . . . . . . . . . . . Fabricator Hacks 19 | . . . . . . 5 . . . . . . 3 . . . . 7 . . . . 2 . 2 Network Status 4 | . . . . . . 2 . . . . . . . . . . . 1 . . . . 1 . . Load Schematic 10 | . . . . . . 3 . . . . . . 2 . . . . 4 . . . . . . 1 Build 5 | . . . . . . . . . . . . . 1 . . . . 2 . . . . 1 . 1 Repair Station Hacks 8 | . . . . . 4 . . . . . 1 . . . . . . . 2 . . . 1 . . Scan Component 5 | . . . . . 2 . . . . . 1 . . . . . . . 1 . . . 1 . . Repair 3 | . . . . . 2 . . . . . . . . . . . . . 1 . . . . . . Recycling Unit Hacks 2 | . 2 . . . . . . . . . . . . . . . . . . . . . . . . Retrieve Components 2 | . 2 . . . . . . . . . . . . . . . . . . . . . . . . Scanalyzer 17 | . . . . . 2 13 . . . . . . . . . . . 2 . . . . . . . Insert Component 6 | . . . . . . 6 . . . . . . . . . . . . . . . . . . . Analyze 6 | . . . . . . 6 . . . . . . . . . . . . . . . . . . . Retrieve Study 5 | . . . . . 2 1 . . . . . . . . . . . 2 . . . . . . . Garrison Access Hacks . | . . . . . . . . . . . . . . . . . . . . . . . . . . Unauthorized Hacks 15 | . 4 . . . 3 5 . . . . . . 1 . . . . 2 . . . . . . . Terminals 8 | . 4 . . . 3 1 . . . . . . . . . . . . . . . . . . . Track 1 | . 1 . . . . . . . . . . . . . . . . . . . . . . . . Assimilate 1 | . . . . . 1 . . . . . . . . . . . . . . . . . . . . Botnet 4 | . 2 . . . 1 1 . . . . . . . . . . . . . . . . . . . Operators 2 | . 1 . . . 1 . . . . . . . . . . . . . . . . . . . . Fabricators 7 | . . . . . . 4 . . . . . . 1 . . . . 2 . . . . . . . Prioritize 1 | . . . . . . . . . . . . . 1 . . . . . . . . . . . . Liberate 1 | . . . . . . 1 . . . . . . . . . . . . . . . . . . . Recompile 5 | . . . . . . 3 . . . . . . . . . . . 2 . . . . . . . Repair Stations . | . . . . . . . . . . . . . . . . . . . . . . . . . . Recycling Units . | . . . . . . . . . . . . . . . . . . . . . . . . . . Scanalyzers . | . . . . . . . . . . . . . . . . . . . . . . . . . . Garrison Access . | . . . . . . . . . . . . . . . . . . . . . . . . . . Data Cores Recovered . | . . . . . . . . . . . . . . . . . . . . . . . . . . Used . | . . . . . . . . . . . . . . . . . . . . . . . . . . Hacking Detections 48 | . 6 . . . 15 12 . . . . 2 . 4 . . . . 6 . 2 . . 1 . . Full Trace Events 6 | . . . . . 1 1 . . . . . . 3 . . . . 1 . . . . . . . Feedback Events . | . . . . . . . . . . . . . . . . . . . . . . . . . . Feedback Blocked . | . . . . . . . . . . . . . . . . . . . . . . . . . . Robot Schematics Acquired 9 | . . . . . . . . . 4 . . . . . . 5 . . . . . . . . . Robots Built . | . . . . . . . . . . . . . . . . . . . . . . . . . . Authchips . | . . . . . . . . . . . . . . . . . . . . . . . . . . Time . | . . . . . . . . . . . . . . . . . . . . . . . . . . Total Robot Build Rating . | . . . . . . . . . . . . . . . . . . . . . . . . . . Part Schematics Acquired 109 | . . . . . . 5 . . 15 . 24 . 28 . . 12 . . 25 . . . . . . Parts Built 9 | . . . . . . . . . . . . . 2 . . . . 4 . . . . 2 . 1 Authchips 4 | . . . . . . . . . . . . . 1 . . . . 2 . . . . . . 1 Time 455 | . . . . . . . . . . . . . 38 . . . . 228 . . . . 139 . 50 Total Part Build Rating 53 | . . . . . . . . . . . . . 10 . . . . 20 . . . . 18 . 5 Part Studies Acquired 5 | . . . . . 2 1 . . . . . . . . . . . 2 . . . . . . . Parts Repaired 3 | . . . . . 2 . . . . . . . . . . . . . 1 . . . . . . Time 108 | . . . . . 64 . . . . . . . . . . . . . 44 . . . . . . Parts Recycled . | . . . . . . . . . . . . . . . . . . . . . . . . . . Recycled Matter . | . . . . . . . . . . . . . . . . . . . . . . . . . . Retrieved Matter . | . . . . . . . . . . . . . . . . . . . . . . . . . . Retrieved Components 11 | . 11 . . . . . . . . . . . . . . . . . . . . . . . . Parts Scanalyzed 5 | . . . . . . 5 . . . . . . . . . . . . . . . . . . . Part Schematics Acquired 5 | . . . . . . 5 . . . . . . . . . . . . . . . . . . . Parts Damaged . | . . . . . . . . . . . . . . . . . . . . . . . . . . Bothacking | -11 -10 -10 -10 -9 -8 -7 -7 -7 -7 -6 -6 -6 -6 -6 -6 -6 -5 -5 -5 -5 -5 -5 -4 -3 -3 ------------ Run | Yrd Mat Min Exi Min Mat Fac Low Low Zio Pro Fac Was Fac Low Low Dat Pro Fac Ext Cet Arc Hub Fac Res Arm Used RIF Installer . | . . . . . . . . . . . . . . . . . . . . . . . . . . Robots Hacked 7 | . . . 4 . . . . . . . 1 . . . . . . . . . 2 . . . . Non-combat 3 | . . . 3 . . . . . . . . . . . . . . . . . . . . . . Combat 4 | . . . 1 . . . . . . . 1 . . . . . . . . . 2 . . . . Robot Hacks Applied 7 | . . . 4 . . . . . . . 1 . . . . . . . . . 2 . . . . parse_system 7 | . . . 4 . . . . . . . 1 . . . . . . . . . 2 . . . . Relay Couplers Released 6 | . . . . . . . . . . . . . 1 . . . . 2 . . . . 3 . . Machine Destruction 3 | . . . . . . . . . . . . . 1 . . . . 2 . . . . . . . Programmers 3 | . . . . . . . . . . . . . . . . . . . . . . . 3 . . Fabnet Peak Effective % . | . . . . . . . . . . . . . . . . . . . . . . . . . . Robots Rewired 10 | . . . . . . . . . . . . . . . . . . . 10 . . . . . . Allies Hacked 1 | . . . . . . 1 . . . . . . . . . . . . . . . . . . . Hacks Repelled . | . . . . . . . . . . . . . . . . . . . . . . . . . . Allies | -11 -10 -10 -10 -9 -8 -7 -7 -7 -7 -6 -6 -6 -6 -6 -6 -6 -5 -5 -5 -5 -5 -5 -4 -3 -3 -------- Run | Yrd Mat Min Exi Min Mat Fac Low Low Zio Pro Fac Was Fac Low Low Dat Pro Fac Ext Cet Arc Hub Fac Res Arm Total Allies 81 | . . 1 . . 1 4 . . 4 . 6 19 4 . . . . . 26 5 . 5 . 6 . Largest Group 20 | . . 1 1 . 1 2 . . 4 4 6 19 18 . . . . . 20 19 11 10 4 3 . Highest-Rated Group 919 | . . 31 31 . 10 42 . . 155 155 308 684 631 . . . . . 919 899 827 803 313 288 . Highest-Rated Ally 159 | . . 31 31 . 10 21 . . 40 40 85 70 70 . . . . . 159 140 140 96 96 96 . Zionite Dispatches 12 | . . . . . . . . . . . 3 . 2 . . . . . 3 . . 2 . 2 . Heavy 4 | . . . . . . . . . . . 1 . . . . . . . 2 . . 1 . . . Light 4 | . . . . . . . . . . . 1 . 1 . . . . . . . . . . 2 . Hacker 2 | . . . . . . . . . . . . . . . . . . . 1 . . 1 . . . Demo 1 | . . . . . . . . . . . 1 . . . . . . . . . . . . . . Thermal Resupply 1 | . . . . . . . . . . . . . 1 . . . . . . . . . . . . Total Orders 5 | . . . . . . . . . . . . . 3 . . . . . . . 2 . . . . STAY 2 | . . . . . . . . . . . . . 1 . . . . . . . 1 . . . . FOLLOW 2 | . . . . . . . . . . . . . 1 . . . . . . . 1 . . . . DROP 1 | . . . . . . . . . . . . . 1 . . . . . . . . . . . . Ally Attacks 749 | . . . . . . 48 . . . 14 55 13 210 . . . . . 157 51 19 125 . 57 . Total Damage 23282 | . . . . . . 812 . . . 606 2741 284 4001 . . . . . 4903 1539 683 5290 . 2423 . Kills 137 | . . . . . . 8 . . . 5 16 . 26 . . . . . 24 4 4 38 . 12 . Allies Corrupted 2 | . . . . . . . . . . . . . 1 . . . . . . . . . . 1 . Allies Melted 2 | . . . . . . . . . . . . . 2 . . . . . . . . . . . . Intel | -11 -10 -10 -10 -9 -8 -7 -7 -7 -7 -6 -6 -6 -6 -6 -6 -6 -5 -5 -5 -5 -5 -5 -4 -3 -3 ------- Run | Yrd Mat Min Exi Min Mat Fac Low Low Zio Pro Fac Was Fac Low Low Dat Pro Fac Ext Cet Arc Hub Fac Res Arm Active Infowar (turns) 20944 | 22 1371 682 995 188 1238 2001 470 465 1395 508 1432 751 1366 760 685 111 281 2034 1185 421 389 464 598 817 315 Optics 1928 | . . . . . . 1928 . . . . . . . . . . . . . . . . . . . Sensors 15941 | . . . . . . 1875 470 465 1395 508 1051 751 1366 760 685 111 281 2034 1185 421 389 464 598 817 315 Terrain 1044 | . . . . . . . . . . . 1044 . . . . . . . . . . . . . . Seismic 4496 | 22 1371 682 995 188 1238 . . . . . . . . . . . . . . . . . . . . Robot Analysis Total 1 | . 1 . . . . . . . . . . . . . . . . . . . . . . . . Derelict Logs Recovered 8 | . . 1 . 1 . . . 2 1 . . . . 1 1 . 1 . . . . . . . . Drone Launches . | . . . . . . . . . . . . . . . . . . . . . . . . . . Drone Recoveries . | . . . . . . . . . . . . . . . . . . . . . . . . . . Zionite Intel Received 24 | . . . . . . . . . . . 10 . 5 . . . . 2 4 . . 3 . . . Main Access 1 | . . . . . . . . . . . . . . . . . . 1 . . . . . . . Branch Access 2 | . . . . . . . . . . . 1 . 1 . . . . . . . . . . . . Emergency Access 2 | . . . . . . . . . . . 1 . 1 . . . . . . . . . . . . Guard Positions 1 | . . . . . . . . . . . 1 . . . . . . . . . . . . . . Component Stockpiles 2 | . . . . . . . . . . . 1 . . . . . . . . . . 1 . . . Component Schematics 3 | . . . . . . . . . . . 1 . 1 . . . . . 1 . . . . . . Prototype Schematics 3 | . . . . . . . . . . . 1 . 1 . . . . . 1 . . . . . . Unaware Analyses 2 | . . . . . . . . . . . 2 . . . . . . . . . . . . . . Active Terminals 2 | . . . . . . . . . . . 1 . . . . . . . 1 . . . . . . Active Garrisons 3 | . . . . . . . . . . . 1 . . . . . . 1 . . . 1 . . . Depthwide Sectors/0 1 | . . . . . . . . . . . . . 1 . . . . . . . . . . . . Depthwide Sectors/-1 2 | . . . . . . . . . . . . . . . . . . . 1 . . 1 . . . Exploration | -11 -10 -10 -10 -9 -8 -7 -7 -7 -7 -6 -6 -6 -6 -6 -6 -6 -5 -5 -5 -5 -5 -5 -4 -3 -3 ------------- Run | Yrd Mat Min Exi Min Mat Fac Low Low Zio Pro Fac Was Fac Low Low Dat Pro Fac Ext Cet Arc Hub Fac Res Arm Turns Passed 25865 | 110 1427 715 995 270 3508 2125 474 468 1395 543 1458 784 1650 761 841 111 284 2579 1722 421 389 537 884 817 597 Spaces Moved 15913 | 61 651 417 493 140 1677 1540 388 382 1135 310 900 446 1174 645 637 91 228 1521 1026 166 140 368 570 447 360 Core 143 | 52 . . . . . . . . . . . . . . . . . . . . . . . . 91 Treads 3303 | 9 651 417 493 140 1593 . . . . . . . . . . . . . . . . . . . . Legs 7492 | . . . . . . . . . . . . 210 1174 645 637 91 228 1521 1026 166 140 368 570 447 269 Wheels 4975 | . . . . . 84 1540 388 382 1135 310 900 236 . . . . . . . . . . . . . Hover . | . . . . . . . . . . . . . . . . . . . . . . . . . . Flight . | . . . . . . . . . . . . . . . . . . . . . . . . . . Fastest Speed 50 | 50 160 160 160 160 115 105 120 120 120 120 120 116 115 116 116 116 116 110 110 110 110 111 113 105 50 Average Speed 126 | 66 160 160 198 160 165 116 120 120 120 120 120 118 116 116 116 116 116 114 110 110 110 111 114 123 95 Slowest Speed 277 | 160 160 160 240 160 170 120 120 120 120 120 120 192 194 116 116 116 116 118 111 111 111 114 115 277 190 Overloaded Moves . | . . . . . . . . . . . . . . . . . . . . . . . . . . Propulsion Burnouts . | . . . . . . . . . . . . . . . . . . . . . . . . . . Robots Hopped . | . . . . . . . . . . . . . . . . . . . . . . . . . . Potential Cave-ins 13 | . . . . . . . . . . . . . . . . . . 10 . . . . . 3 . Cave-ins Triggered . | . . . . . . . . . . . . . . . . . . . . . . . . . . Exploration Rate (%) 55 | 5 91 96 71 17 97 31 54 59 88 50 26 89 40 81 75 69 51 35 97 57 79 33 20 18 26 Regions Visited 25 Branch Regions 16 Pre-discovered Areas 21 | . . . 1 2 . . . 1 1 . . . 6 . 1 1 . . 4 . . 4 . . . Known Exits Taken 17 | . . . . . . 1 1 1 1 1 . . 1 1 1 1 1 1 1 1 1 1 1 1 . Unknown Exits Taken 6 | 1 1 1 1 1 1 . . . . . . . . . . . . . . . . . . . . Scrap Searched 16 | . . 1 . . . . 1 . 3 2 . . . 2 4 . 3 . . . . . . . . Spaces Dug 136 | . . 21 . . 2 25 . 1 . . 4 . 17 . . . . 21 3 . . 7 18 10 7 Terrain Destroyed 714 | . . 21 . . 12 25 . 1 . 1 16 139 22 . . . . 57 13 1 2 16 156 91 141 Melee 20 | . . . . . . 18 . 1 . . . . . . . . . . . . . . . . 1 Projectile 223 | . . . . . 3 . . . . 1 16 . 22 . . . . 42 13 1 2 16 53 41 13 AOE 471 | . . 21 . . 9 7 . . . . . 139 . . . . . 15 . . . . 103 50 127 Terrain Rammed . | . . . . . . . . . . . . . . . . . . . . . . . . . . Walls Destroyed . | . . . . . . . . . . . . . . . . . . . . . . . . . . Machines Disabled . | . . . . . . . . . . . . . . . . . . . . . . . . . . Actions | -11 -10 -10 -10 -9 -8 -7 -7 -7 -7 -6 -6 -6 -6 -6 -6 -6 -5 -5 -5 -5 -5 -5 -4 -3 -3 --------- Run | Yrd Mat Min Exi Min Mat Fac Low Low Zio Pro Fac Was Fac Low Low Dat Pro Fac Ext Cet Arc Hub Fac Res Arm Total 19973 | 93 934 447 508 163 2084 1781 392 387 1169 470 1188 646 1334 652 688 96 236 2154 1522 399 309 475 707 609 530 Wait 2152 | . 190 5 . 3 131 88 1 . 15 151 187 130 37 4 16 . 1 399 333 186 105 59 23 29 59 Move 15890 | 61 650 416 492 139 1676 1539 387 381 1134 309 900 445 1173 644 636 90 227 1520 1025 165 139 367 569 446 360 Hop . | . . . . . . . . . . . . . . . . . . . . . . . . . . Pick Up 207 | 7 19 3 2 2 40 26 . . 3 . 11 6 7 . 3 . . 19 8 11 . 10 2 16 12 Fast Attach 83 | 3 . . . . 7 5 . 1 3 1 1 2 9 . . 3 . 20 2 1 4 . 5 12 4 Attach 117 | 4 1 . 2 . 13 4 . . 3 . 4 3 1 . 1 . . 24 4 4 . . 11 16 22 Detach 23 | . . . . . . . . . 1 . . . . . . . . 13 . 1 . . . 6 2 Swap 292 | . 8 6 3 3 32 27 3 4 2 4 28 14 25 2 9 . 4 33 21 15 8 7 27 4 3 Drop 212 | . 10 3 3 3 37 30 . . 7 1 12 12 14 . 2 3 . 28 6 13 1 14 2 5 6 Fire 854 | 18 52 9 2 12 142 35 1 . . 4 45 31 68 2 21 . 4 97 45 3 52 18 67 75 51 Melee 45 | . . . 4 . . 27 . 1 1 . . 3 . . . . . . . . . . . . 9 Ram 2 | . . . . . . . . . . . . . . . . . . . . . . . . . 2 Kick 2 | . . . . . . . . . . . . . . . . . . 1 . . . . 1 . . Crush 13 | . 4 2 . 1 6 . . . . . . . . . . . . . . . . . . . . Escape Stasis 1 | . . . . . . . . . . . . . . . . . . . 1 . . . . . . Rewire 77 | . . . . . . . . . . . . . . . . . . . 77 . . . . . . Trap 3 | . . 3 . . . . . . . . . . . . . . . . . . . . . . . Miscellaneous . | . . . . . . . . . . . . . . . . . . . . . . . . . . Route ------- -11/Scrapyard -10/Materials (discovered 5 exits: [*Mat x3] / [*Min x2]) -10/Mines (discovered 3 exits: [*Mat x2] / *Exi) -10/Exiles (discovered 2 exits: [*Min x2]) -9/Mines -8/Materials (discovered 3 exits: *Fac x3) -7/Factory (discovered 2 exits: *Low x2) -7/Lower Caves -7/Lower Caves (discovered 2 exits: *Fac / *Zio) -7/Zion (discovered 2 exits: Dee / *Pro) -6/Proximity Caves -6/Factory (discovered 4 exits: *Fac x2 / Low x2) -6/Waste -6/Factory (discovered 2 exits: *Low x2) -6/Lower Caves -6/Lower Caves (discovered 2 exits: *Fac / *Dat) -6/Data Miner -5/Proximity Caves -5/Factory (discovered 5 exits: *Fac x4 / *Ext) -5/Extension (discovered 2 exits: *Fac / *Cet) -5/Cetus -5/Archives (discovered 3 exits: *Fac / *Hub x2) -5/Hub_04(d) -4/Factory -3/Research -3/Armory History --------- Turn | Location | Event 3 | -11/Scrapyard | Discovered new exit (range 16) 111 | -11/Scrapyard | Entered Materials 304 | -10/Materials | Build established: Mutant 403 | -10/Materials | Discovered new exit (range 3) 611 | -10/Materials | Discovered new exit (range 4) 737 | -10/Materials | Discovered new exit (range 8) 1007 | -10/Materials | Discovered new exit (range 16) 1115 | -10/Materials | Discovered new exit (range 15) 1538 | -10/Materials | Entered Mines 1730 | -10/Mines | Found a hidden stash of uninstalled traps 1859 | -10/Mines | Discovered new exit (range 14) 1963 | -10/Mines | Discovered new exit (range 9) 2131 | -10/Mines | Learned Materials stockpile data 2138 | -10/Mines | Received a Rocket Launcher from a helpful Derelict 2211 | -10/Mines | Escorted by a lone wolf Derelict 2245 | -10/Mines | Deemed a non-threat by the Exiles lab entrance 2246 | -10/Mines | Discovered new exit (range 5) 2253 | -10/Mines | Entered Exiles 2253 | -10/Exiles | Accompanied by 1 ally 2279 | -10/Exiles | Discovered new exit (range 15) 2299 | -10/Exiles | Met 8R-AWN 2326 | -10/Exiles | Met EX-HEX 2374 | -10/Exiles | Met EX-BIN 2442 | -10/Exiles | Met EX-DEC 2728 | -10/Exiles | Learned location of Zion (-7) 2891 | -10/Exiles | Aligned with FarCom system 2894 | -10/Exiles | Given EX-Vault access code 2954 | -10/Exiles | Opened EX-Vault 3014 | -10/Exiles | Warned to stay clear of 0b10 Research branches 3214 | -10/Exiles | Attacked by the Exiles 3236 | -10/Exiles | Discovered new exit (range 10) 3248 | -10/Exiles | Entered Mines 3328 | -9/Mines | Found a Scrap Suit stashed away for nefarious purposes 3336 | -9/Mines | Discovered new exit (range 7) 3382 | -9/Mines | Learned location of Storage (-9) 3518 | -9/Mines | Entered Materials 3518 | -8/Materials | Evolved 4 slots: Propulsion x2, Utility x1, Weapon x1 3577 | -8/Materials | Garrison activated, responded to threat 3812 | -8/Materials | Build established: Scavenger-Gunner 3852 | -8/Materials | Destroyed 8 combat bots 4169 | -8/Materials | Repaired Beam Cannon 4227 | -8/Materials | Discovered new exit (range 15) 5650 | -8/Materials | Build established: Scavenger-Tank 5908 | -8/Materials | Discovered new exit (range 7) 5918 | -8/Materials | First assault squad dispatched 6260 | -8/Materials | Repaired Hrd. Medium Armor Plating 6710 | -8/Materials | Sterilization system engaged 6710 | -8/Materials | Non-combat units ordered to evacuate 6717 | -8/Materials | Build established: Tank 6810 | -8/Materials | Combat units ordered to evacuate 7010 | -8/Materials | Ambient heat levels rising (+10) 7012 | -8/Materials | Discovered new exit (range 6) 7026 | -8/Materials | Entered Factory 7026 | -7/Factory | Evolved 2 slots: Utility x2 7803 | -7/Factory | Identified exit to Lower Caves 7867 | -7/Factory | Build established: Skirmisher 8327 | -7/Factory | Central database locked down 8545 | -7/Factory | Found Powered Armor 8651 | -7/Factory | Cargo convoy interrupted 8870 | -7/Factory | Found Exp. Targeting Computer 8892 | -7/Factory | Found Exp. Targeting Computer 8934 | -7/Factory | Build established: Assassin 9151 | -7/Factory | Entered Lower Caves 9459 | -7/Lower Caves | Build established: Skirmisher 9602 | -7/Lower Caves | Discovered new exit (range 11) 9615 | -7/Lower Caves | Identified exit to Lower Caves 9625 | -7/Lower Caves | Entered another Lower Caves area 9656 | -7/Lower Caves | Discovered new exit (range 15) 9671 | -7/Lower Caves | Identified exit to Factory 9740 | -7/Lower Caves | Identified exit to Zion 9780 | -7/Lower Caves | Found Alien Artifact 9780 | -7/Lower Caves | Identified Core Expander 9780 | -7/Lower Caves | Installed Core Expander, added new Propulsion slot 9965 | -7/Lower Caves | Encountered a Warlord checkpoint 9973 | -7/Lower Caves | Learned location of Extension (-5) 10093 | -7/Lower Caves | Entered Zion 10172 | -7/Zion | Acquired unknown access codes intercepted by a Zionite 10245 | -7/Zion | Discovered new exit (range 13) 10274 | -7/Zion | System corruption cleaned by Quarantine Array 10558 | -7/Zion | Found Rocket Array 10692 | -7/Zion | Learned location of Data Miner (-6) 10796 | -7/Zion | Learned Factory emergency access door positions 10848 | -7/Zion | Identified exit to Deep Caves 11104 | -7/Zion | Met Imprinter 11125 | -7/Zion | Imprinted 11127 | -7/Zion | Declared Zion's savior 11442 | -7/Zion | Found Prototype Energy Gun 11474 | -7/Zion | Identified exit to Proximity Caves 11488 | -7/Zion | Entered Proximity Caves 11488 | -6/Proximity Caves | Accompanied by 4 allies 11875 | -6/Proximity Caves | Received a Behemoth hack from an annoying Tinkerer 11894 | -6/Proximity Caves | Discovered exit to Factory (range 3) 12031 | -6/Proximity Caves | Entered Factory 12031 | -6/Factory | Accompanied by 4 allies 12031 | -6/Factory | Evolved 2 slots: Power x1, Utility x1 12181 | -6/Factory | Spotted B-75 Beast 12188 | -6/Factory | Destroyed B-75 Beast 12250 | -6/Factory | Retrieved Zion intel report: Active Terminals 12282 | -6/Factory | Retrieved Zion intel report: Branch Access 12282 | -6/Factory | Identified exit to Lower Caves 12283 | -6/Factory | Zion Heavy squad teleported in 12470 | -6/Factory | Lost 4 allies 12552 | -6/Factory | Discovered new exit (range 16) 12587 | -6/Factory | Retrieved Zion intel report: Prototype Schematics 12612 | -6/Factory | Retrieved Zion intel report: Unaware Analyses 12794 | -6/Factory | Retrieved Zion intel report: Guard Positions 12907 | -6/Factory | Retrieved Zion intel report: Unaware Analyses 12933 | -6/Factory | Zion Demo squad teleported in 13206 | -6/Factory | Retrieved Zion intel report: Component Schematics 13232 | -6/Factory | Retrieved Zion intel report: Component Stockpiles 13245 | -6/Factory | Discovered new exit (range 16) 13254 | -6/Factory | Retrieved Zion intel report: Emergency Access 13294 | -6/Factory | Identified exit to Factory 13337 | -6/Factory | Retrieved Zion intel report: Active Garrisons 13338 | -6/Factory | Zion Light squad teleported in 13341 | -6/Factory | Terminal network hard line cut 13382 | -6/Factory | Build established: Tank 13489 | -6/Factory | Sucked down chute 13489 | -6/Factory | Entered Waste 13505 | -6/Waste | Found Unknown Device 13505 | -6/Waste | Identified Heavy Servo Lattice 13540 | -6/Waste | Spotted C-40 Crusher 13558 | -6/Waste | Destroyed C-40 Crusher 13583 | -6/Waste | Found Zio. Weapon Casing 13594 | -6/Waste | 3 allies followed down the chute 13594 | -6/Waste | Spotted C-40 Crusher 13602 | -6/Waste | Spotted C-40 Crusher 13609 | -6/Waste | Spotted C-40 Crusher 13609 | -6/Waste | Destroyed C-40 Crusher 13621 | -6/Waste | Destroyed C-40 Crusher 13627 | -6/Waste | Destroyed C-40 Crusher 13630 | -6/Waste | Spotted C-40 Crusher 13634 | -6/Waste | Destroyed C-40 Crusher 13650 | -6/Waste | Spotted C-40 Crusher 13675 | -6/Waste | Destroyed C-40 Crusher 13763 | -6/Waste | Discovered new exit (range 12) 13783 | -6/Waste | Warlord forces began an assault 14077 | -6/Waste | Identified exit to Factory 14273 | -6/Waste | Entered Factory 14273 | -6/Factory | Accompanied by 18 allies 14364 | -6/Factory | Retrieved Zion intel report: Branch Access 14488 | -6/Factory | Lost 4 allies 14630 | -6/Factory | Lost 3 allies 14656 | -6/Factory | P-60 Hacker assimilated allied 94-Z9T(g) 14660 | -6/Factory | Garrison activated, responded to threat 14724 | -6/Factory | Retrieved Zion intel report: Emergency Access 14847 | -6/Factory | Retrieved Zion intel report: Prototype Schematics 14934 | -6/Factory | Retrieved Zion intel report: Depthwide Sectors/-6 14935 | -6/Factory | Zion Thermal Resupply teleported in 14945 | -6/Factory | Fabricated Force Rifle? 15180 | -6/Factory | Zion Light squad teleported in 15291 | -6/Factory | Found Zio. Weapon Casing 15515 | -6/Factory | Retrieved Zion intel report: Component Schematics 15602 | -6/Factory | Terminal network hard line cut 15846 | -6/Factory | Lost 4 allies 15923 | -6/Factory | Entered Lower Caves 15942 | -6/Lower Caves | Learned Factory stockpile data 16188 | -6/Lower Caves | Encountered a Warlord checkpoint 16658 | -6/Lower Caves | Discovered new exit (range 7) 16665 | -6/Lower Caves | Identified exit to Lower Caves 16684 | -6/Lower Caves | Entered another Lower Caves area 16684 | -6/Lower Caves | Discovered exit to Factory (range 10) 16685 | -6/Lower Caves | Encountered a Warlord checkpoint 16754 | -6/Lower Caves | Spotted B-75 Beast 16783 | -6/Lower Caves | Destroyed B-75 Beast 17356 | -6/Lower Caves | Discovered new exit (range 6) 17501 | -6/Lower Caves | Identified exit to Data Miner 17525 | -6/Lower Caves | Entered Data Miner 17527 | -6/Data Miner | Discovered new exit (range 6) 17549 | -6/Data Miner | Met Data Miner 17578 | -6/Data Miner | Learned location of Section 7 (-2) 17578 | -6/Data Miner | Acquired the access code to Warlord's prototype stash 17588 | -6/Data Miner | Received God Mode back door access code from Data Miner 17635 | -6/Data Miner | Identified exit to Proximity Caves 17636 | -6/Data Miner | Entered Proximity Caves 17810 | -5/Proximity Caves | Learned Factory emergency access door positions 17908 | -5/Proximity Caves | Discovered exit to Factory (range 11) 17920 | -5/Proximity Caves | Entered Factory 17920 | -5/Factory | Evolved 2 slots: Propulsion x1, Weapon x1 17922 | -5/Factory | Identified Storm Laser 18272 | -5/Factory | Destroyed 7 combat bots 18282 | -5/Factory | Incoming assault squad redirected 18305 | -5/Factory | Incoming investigation squad redirected 18534 | -5/Factory | Spotted B-75 Beast 18553 | -5/Factory | Destroyed B-75 Beast 18566 | -5/Factory | Discovered new exit (range 13) 18581 | -5/Factory | Identified exit to Factory 18636 | -5/Factory | Discovered exit to Factory (range 9) 18903 | -5/Factory | Retrieved Zion intel report: Main Access 18920 | -5/Factory | Retrieved Zion intel report: Active Garrisons 19058 | -5/Factory | Fabricated Force Rifle? 19230 | -5/Factory | Discovered new exit (range 6) 19328 | -5/Factory | Terminal network hard line cut 19696 | -5/Factory | Incoming investigation squad redirected 19714 | -5/Factory | System corruption reached 10% 19877 | -5/Factory | Found Corrupted Powered Armor 19890 | -5/Factory | Found Powered Armor 19892 | -5/Factory | Found Powered Armor 20125 | -5/Factory | Build established: Messiah-Skirmisher 20386 | -5/Factory | Fabricated Force Rifle (x2) 20475 | -5/Factory | Identified exit to Extension 20499 | -5/Factory | Entered Extension 20716 | -5/Extension | Zion Hacker squad teleported in 20800 | -5/Extension | Rescued A7 20842 | -5/Extension | Retrieved Zion intel report: Active Terminals 20988 | -5/Extension | Build established: Tank 21007 | -5/Extension | Rescued a captive Derelict 21205 | -5/Extension | Repaired Coolant Injector 21301 | -5/Extension | Rescued a captive Derelict 21301 | -5/Extension | Rescued a captive Derelict 21315 | -5/Extension | Zion Heavy squad teleported in 21427 | -5/Extension | Build established: Commander-Tank 21567 | -5/Extension | Spotted B-75 Beast 21577 | -5/Extension | Destroyed B-75 Beast 21594 | -5/Extension | Spotted B-75 Beast 21609 | -5/Extension | Allies destroyed B-75 Beast 21633 | -5/Extension | Lost 3 allies 21763 | -5/Extension | Rescued a captive Derelict 21780 | -5/Extension | Rescued a captive Derelict 21781 | -5/Extension | Rescued a captive Derelict 21817 | -5/Extension | Zion Heavy squad teleported in 21823 | -5/Extension | Rescued a captive Derelict 21824 | -5/Extension | Rescued a captive Derelict 21836 | -5/Extension | Retrieved Zion intel report: Depthwide Sectors/-4 21852 | -5/Extension | Retrieved Zion intel report: Prototype Schematics 21865 | -5/Extension | Rescued a captive Derelict 21879 | -5/Extension | Retrieved Zion intel report: Component Schematics 21887 | -5/Extension | Terminal network hard line cut 21914 | -5/Extension | Discovered exit to Factory (range 10) 21915 | -5/Extension | Discovered new exit (range 6) 22049 | -5/Extension | Disrupted transfer network 22157 | -5/Extension | Identified exit to Cetus 22221 | -5/Extension | Entered Cetus 22221 | -5/Cetus | Accompanied by 19 allies (A7) 22226 | -5/Cetus | Acquired a Cetus Manufacturing Module code from A7 22271 | -5/Cetus | Spotted Cetus Guard 22272 | -5/Cetus | Spotted Cetus Guard 22273 | -5/Cetus | Spotted Cetus Guard 22275 | -5/Cetus | Spotted Cetus Guard 22281 | -5/Cetus | Allies destroyed Cetus Guard 22296 | -5/Cetus | Allies destroyed Cetus Guard 22303 | -5/Cetus | Allies destroyed Cetus Guard 22307 | -5/Cetus | Allies destroyed Cetus Guard 22327 | -5/Cetus | Found Prototype Protection 22327 | -5/Cetus | Identified Zio. Heavy Carapace 22331 | -5/Cetus | Lost 13 allies 22353 | -5/Cetus | Found Zio. Weapon Casing 22476 | -5/Cetus | Started Cetus Manufacturing Module 22496 | -5/Cetus | Discovered new exit (range 16) 22501 | -5/Cetus | Manufactured an Enhanced Grunt 22512 | -5/Cetus | Identified exit to Archives 22526 | -5/Cetus | Manufactured an Enhanced Grunt 22551 | -5/Cetus | Manufactured an Enhanced Grunt 22576 | -5/Cetus | Manufactured an Enhanced Grunt 22598 | -5/Cetus | Build established: Messiah-Skirmisher 22601 | -5/Cetus | Manufactured an Enhanced Grunt 22642 | -5/Cetus | Entered Archives 22642 | -5/Archives | Accompanied by 11 allies (A7) 22697 | -5/Archives | Discovered new exit (range 15) 22764 | -5/Archives | Discovered exit to Factory (range 16) 22814 | -5/Archives | Discovered new exit (range 14) 23005 | -5/Archives | Identified exit to Hub_04(d) 23031 | -5/Archives | Entered Hub_04(d) 23031 | -5/Hub_04(d) | Accompanied by 9 allies 23068 | -5/Hub_04(d) | Zion Heavy squad teleported in 23196 | -5/Hub_04(d) | Discovered exit to Factory (range 9) 23281 | -5/Hub_04(d) | Retrieved Zion intel report: Component Stockpiles 23314 | -5/Hub_04(d) | Retrieved Zion intel report: Depthwide Sectors/-4 23324 | -5/Hub_04(d) | Retrieved Zion intel report: Active Garrisons 23325 | -5/Hub_04(d) | Zion Hacker squad teleported in 23331 | -5/Hub_04(d) | First assault squad dispatched 23351 | -5/Hub_04(d) | Found Zio. Weapon Casing 23412 | -5/Hub_04(d) | Lost 6 allies 23568 | -5/Hub_04(d) | Entered Factory 23568 | -4/Factory | Accompanied by 4 allies 23568 | -4/Factory | Evolved 2 slots: Utility x2 23713 | -4/Factory | Lost 4 allies 23818 | -4/Factory | First assault squad dispatched 23873 | -4/Factory | Build established: Messiah-Gunner 23952 | -4/Factory | Fabricated Quantum Reactor? 24205 | -4/Factory | Discovered new exit (range 14) 24235 | -4/Factory | Identified exit to Research 24237 | -4/Factory | Destroyed 7 combat bots 24338 | -4/Factory | Incoming assault squad redirected 24389 | -4/Factory | System corruption reached 10% 24452 | -4/Factory | Entered Research 24452 | -3/Research | Evolved 2 slots: Power x1, Utility x1 24481 | -3/Research | Lost 14 parts (2p3n6u3w) 24702 | -3/Research | First assault squad dispatched 24717 | -3/Research | Build established: Messiah-Mutant 24755 | -3/Research | Zion Light squad teleported in 24886 | -3/Research | Found Zio. Weapon Casing 25022 | -3/Research | Spotted B-86 Titan 25036 | -3/Research | Zion Light squad teleported in 25043 | -3/Research | Lost 3 parts (2n1u) 25044 | -3/Research | Allies destroyed B-86 Titan 25093 | -3/Research | Found Zio. Weapon Casing 25099 | -3/Research | Lost 3 allies 25135 | -3/Research | Found Zio. Weapon Casing 25163 | -3/Research | Discovered new exit (range 15) 25255 | -3/Research | Identified exit to Armory 25269 | -3/Research | Entered Armory 25300 | -3/Armory | Build established: Messiah-Skirmisher 25408 | -3/Armory | Found Gamma Bomb Array 25475 | -3/Armory | Found Fusion Bomb Launcher 25531 | -3/Armory | Fabricated Exp. Targeting Computer (x1) 25654 | -3/Armory | Destroyed 8 combat bots 25655 | -3/Armory | Lost 12 parts (2p4u6w) 25730 | -3/Armory | Found Fusion Bomb Launcher 25807 | -3/Armory | System corruption reached 10% 25809 | -3/Armory | System corruption reached 30% 25819 | -3/Armory | Released all parts (11) 25832 | -3/Armory | Core integrity fell below 50% 25846 | -3/Armory | Lost 12 parts (1p8n1u2w) 25846 | -3/Armory | Core integrity fell below 20% 25866 | -3/Armory | Destroyed by H-77 Assassin with Coil Gun Last Messages --------------- 25823_ G-67 Veteran destroyed. 25827_ E-15 Imp destroyed. 25829_ ALERT: Hostiles spotted, dispatching reinforcements to Terminal A005. 25831_ Knocked back. 25832_ Penetrated by Slug. 25834_ Detecting system override signal. 25838_ Penetrated by Slug. 25838_ Slug penetrates Wall. 25847_ System corrupted: Component data lost. 25856_ I-47 Archangel sends out distress signal. 25857_ Knocked back. 25857_ Slug penetrates Wall. 25858_ Slammed into Y-72 Warden. 25858_ Penetrated by Slug. 25858_ Slug penetrates Wall. 25859_ Slammed into Y-72 Warden. 25861_ Transfer Shaft disabled. 25865_ System corrupted: Substantial component data lost. 25865_ Slug penetrates Wall. Map ----- +----------------------------------------------------+ | | | | | | | | | | | | | | | | | | | | | | | ?????????????????????????????????????????????????? | | ?????????????????????????????????????????????????? | | ?????????????????????????????????????????????????? | | ?????????????????????????????????????????????????? | | ?????????????????????????????????????????????????? | | ?????????????????????????????????????????????????? | | ?????????????????????????????????????????????????? | | ?????????????????????????????????????????????????? | | ?????????????????????????????????????????????????? | | ?????????????????????????????????????????????????? | | ????????????????????????????????????#####????????? | | ??????????????????##############????#"""#????????? | | ??????????????????# #????#"Y"#????????? | | ??????????????????+ #?####" "###??????? | | ??????????????????# @ #?# ######## | | ??????????????????# #?# """ + | | ??????????????????# #?# """ # | | ??????????????????# s #?# """ # ##### | | ??????????????????# s### # #???? | | ??????????????????# /s/ """ # #???? | | ??????????????????# ### """ # #???? | | ??????????????????# #?# "" =# #???? | | ??????????????????# #?# # #???? | | ??????????????????# g #?#####/#### #???? | | ??????????????????##+####g########## ### ##### | | ???????????????????? g | | ???????????????????? | | ???????????????????? ########### ########## | | ??????????????????? ??????????######????????? | | ???????????????????? ????????????????????????? | | ???????????????????? ????????????????????????? | | ?????????????????????????????????????????????????? | | ?????????????????????????????????????????????????? | | ?????????????????????????????????????????????????? | | ?????????????????????????????????????????????????? | | ?????????????????????????????????????????????????? | | ?????????????????????????????????????????????????? | | ?????????????????????????????????????????????????? | | ?????????????????????????????????????????????????? | +----------------------------------------------------+ Best States ------------- Heat Dissipation 72 Coolant Potential 80 Energy Generation 88 Energy Capacity 1425 Matter Stores 300 Matter Capacity 300 Sight Range 20 Robot Scan Range 16 Terrain Scan Range 20 Terrain Scan Density 10 Power Amplification 30 Armor Coverage 1200 Resistance: KI 30 Weapon Shielding 100 Point Defense Rating 240 Weapon Cycling 25 Evasion (%) 70 Targeting Accuracy 24 Recoil Reduction 4 Particle Charging 20 Defensive Hacking 10 Authchip Count 4 Item Schematics ----------------- Plasma Cannon | -7/Factory | Scanalyzed Hcp. Storage Unit | -7/Factory | Scanalyzed Arm. Huge Wheel | -7/Factory | Scanalyzed Core Analyzer | -7/Factory | Scanalyzed Coolant Injector | -7/Factory | Scanalyzed EM Disruption Field | -7/Zion | Archive Remote Shield | -7/Zion | Archive Component Analysis Suite | -7/Zion | Archive Lgt. Angular Momentum Engine | -7/Zion | Archive Imp. Cooling System | -7/Zion | Archive Energy Well | -7/Zion | Archive Hvy. Ion Cannon | -7/Zion | Archive Imp. Focal Shield | -7/Zion | Archive Hyp. Gauss Cannon | -7/Zion | Archive Adv. Assault Cannon | -7/Zion | Archive Magnetic Acceleration Cannon | -7/Zion | Archive Imp. Field Recycling Unit | -7/Zion | Archive Hvy. Plasma Cannon | -7/Zion | Archive Adv. Terrain Scan Processor | -7/Zion | Archive Imp. System Restoration Module | -7/Zion | Archive Exp. Targeting Computer | -6/Factory | Z-intel Rocket Array | -6/Factory | Z-intel Prc. Assault Rifle | -6/Factory | Z-intel Cold Fusion Reactor | -6/Factory | Z-intel Force Rifle | -6/Factory | Z-intel Imp. Spread Laser | -6/Factory | Z-intel Gravity Neutralizer | -6/Factory | Z-intel Antimatter Cannon | -6/Factory | Z-intel Plasma Rifle | -6/Factory | Z-intel Hcp. Matter Pod | -6/Factory | Z-intel Imp. VSS Leg | -6/Factory | Z-intel Adv. Signal Interpreter | -6/Factory | Z-intel Imp. EM Pulse Cannon | -6/Factory | Z-intel Hpw. Shock Rifle | -6/Factory | Z-intel Hvy. Laser | -6/Factory | Z-intel Recalibrator | -6/Factory | Z-intel Imp. Carbon-fiber Leg | -6/Factory | Z-intel Com. Matter Pod | -6/Factory | Z-intel Adv. Terrain Scanner | -6/Factory | Z-intel Gravmag Array | -6/Factory | Z-intel Adv. ECM Suite | -6/Factory | Z-intel Flail | -6/Factory | Z-intel Adv. Targeting Computer | -6/Factory | Z-intel Imp. Power Shielding | -6/Factory | Z-intel Cld. Cesium-ion Thruster | -6/Factory | Z-intel Thermal Defense Suite | -6/Factory | Z-intel Com. Ion Cannon | -6/Factory | Z-intel Cld. Airjet | -6/Factory | Z-intel Biomechanical Wings | -6/Factory | Z-intel Ion Burst Cannon | -6/Factory | Z-intel Imp. Heavy Machine Gun | -6/Factory | Z-intel Cld. Aerolev Unit | -6/Factory | Z-intel Cld. Plasma Cannon | -6/Factory | Z-intel Enh. Autogun | -6/Factory | Z-intel Cld. VTOL Module | -6/Factory | Z-intel Prc. Rocket Launcher | -6/Factory | Z-intel Imp. Particle Charger | -6/Factory | Z-intel Matter Compressor | -6/Factory | Z-intel Imp. Sensor Array | -6/Factory | Z-intel Imp. Target Analyzer | -6/Factory | Z-intel Thermal Generator | -6/Factory | Z-intel Phase Cannon | -6/Factory | Z-intel Flak Gun | -6/Factory | Z-intel Adv. Melee Analysis Suite | -6/Factory | Z-intel Transmission Jammer | -6/Factory | Z-intel Imp. Medium Treads | -6/Factory | Z-intel Melee Analysis Suite | -6/Factory | Z-intel Imp. Heat Sink | -6/Factory | Z-intel Fusion Compressor | -6/Factory | Z-intel Imp. Melee Analysis Suite | -6/Factory | Z-intel Hvy. Flak Cannon | -6/Factory | Z-intel Imp. Shield Generator | -6/Factory | Z-intel Combat Drone Bay | -6/Data Miner | Free Lgt. Regenerative Plating | -6/Data Miner | Free Enh. Flexi-carbon Leg | -6/Data Miner | Free Exp. Heat Sink | -6/Data Miner | Free Tesla Bomb Launcher | -6/Data Miner | Free Imp. Linear Gravjet | -6/Data Miner | Free Imp. Point Defense System | -6/Data Miner | Free Force Lance | -6/Data Miner | Free Nuclear Pulse Array | -6/Data Miner | Free Centrium Wheel | -6/Data Miner | Free Adv. VSS Leg | -6/Data Miner | Free Impulse Thruster Array | -6/Data Miner | Free Kinetic Spear | -5/Extension | Z-intel Hpw. Field Laser | -5/Extension | Z-intel Enh. Coil Gun | -5/Extension | Z-intel Impact Mace | -5/Extension | Z-intel Enh. Armored Leg | -5/Extension | Z-intel Imp. Lightning Gun | -5/Extension | Z-intel Hvy. Deuterium Engine | -5/Extension | Z-intel Ionic Axe | -5/Extension | Z-intel Cld. Plasma Rifle | -5/Extension | Z-intel Hvy. Flail | -5/Extension | Z-intel Imp. Medium Armor Plating | -5/Extension | Z-intel Kinecellerator | -5/Extension | Z-intel Fission Core | -5/Extension | Z-intel Proton Missile Launcher | -5/Extension | Z-intel Imp. Weapon Cycler | -5/Extension | Z-intel Imp. Recalibrator | -5/Extension | Z-intel Microactuators | -5/Extension | Z-intel Stasis Canceller | -5/Extension | Z-intel Point Defense System | -5/Extension | Z-intel Huge Storage Unit | -5/Extension | Z-intel Linear Gravjet | -5/Extension | Z-intel Hvy. Reactive Plating | -5/Extension | Z-intel Imp. Weapon Shielding | -5/Extension | Z-intel Powered Hammer | -5/Extension | Z-intel KE Penetrator | -5/Extension | Z-intel Robot Schematics ------------------ R-06 Scavenger | -7/Zion | Archive G-47 Trooper | -7/Zion | Archive A-02 Transporter | -7/Zion | Archive X-82 Rainmaker | -7/Zion | Archive X-72 Disruptor | -6/Data Miner | Free Y-64 Sentinel | -6/Data Miner | Free B-60 Warrior | -6/Data Miner | Free Y-54 Guardian | -6/Data Miner | Free L-61 Swordsman | -6/Data Miner | Free Fabricated ------------ Force Rifle | x2 | -6/Factory | Authchip Force Rifle | x2 | -5/Factory | Authchip Force Rifle | x2 | -5/Factory | Authchip Quantum Reactor | x2 | -4/Factory | Preloaded Exp. Targeting Computer | x1 | -3/Armory | Authchip Repaired ---------- Beam Cannon | 32% | -8/Materials Hrd. Medium Armor Plating | 12% | -8/Materials Coolant Injector | 4% | -5/Extension Studied --------- Hvy. Assault Rifle | -8/Materials | Hacked Autogun | -8/Materials | Hacked Arm. Huge Wheel | -7/Factory | Hacked Flexi-carbon Leg | -5/Factory | Hacked Fission Core | -5/Factory | Hacked Alien Tech Used ----------------- Core Expander Achievements -------------- About That Survey... Challenges ------------ None Game ------ Seed LongswordTargetingFirepult Manual? 0 Play Time 04:17:05 Cumulative 466.8 hours Start 2025.12.20 @ 10:00:28 End 2025.12.20 @ 20:22:08 Sessions 7 Manual Loads 0 Difficulty Rogue Special Mode None Game No. 288 Rogue 288 Adventurer 0 Explorer 0 Win Type - Total 9 Types 6/0/2/0/0/0/0/1/0/0 Lore% 82 Gallery% 82 Achievement% 60 Wizard Run 0 Options --------- Layout 0 ASCII 0 Keyboard 0 Movement Mouse Keybinds 0 Fullscreen 1 Font 24/Smallcaps Map View 76x50 Zoom Use 0% Tactical HUD 1 Map Filters NONE Filters NONE Steam 1 RUN: e953891b-20b9-43c1-94b2-a77ab8690348